bitfinex-derivatives/quotes_ETHF0:USTF0_20250421
["timestamp","ask_amount","ask_price","bid_price","bid_amount"]
[1745237362981,7.33489,1630.5,1630.4,1.7058]
[1745237363184,13.48089,1630.5,1630.4,2.93246]
[1745237363583,14.70748,1630.5,1630.3,1.22668]
[1745237363781,7.74975,1630.4,1630.3,1.22674]
[1745237364174,11.02439,1630.4,1630.3,1.22674]
[1745237364383,6.146,1630.4,1630.3,2.93254]
[1745237365190,11.02439,1630.4,1630.3,2.93254]
[1745237366291,6.146,1630.4,1630.3,2.93254]
[1745237366491,6.146,1630.4,1630.3,3.80144]
[1745237366689,12.25105,1630.4,1630.2,3.2078]
[1745237366886,13.14155,1630.4,1630.2,4.43455]
[1745237367187,6.146,1630.4,1630.3,1.22674]
[1745237367494,6.146,1630.4,1630.3,3.00974]
[1745237368486,6.146,1630.4,1630.3,3.84444]
[1745237370287,10.37,1630.7,1630.3,3.84444]
[1745237370288,6.146,1630.7,1630.3,6.783]
[1745237370593,6.146,1630.7,1630.4,4.4344]
[1745237370594,6.96833,1630.6,1630.4,4.4344]
[1745237370789,1.22659,1630.5,1630.4,3.2078]
[1745237370990,6.10498,1630.5,1630.4,3.2078]
[1745237371196,12.25098,1630.5,1630.4,4.43446]
[1745237371493,11.02439,1630.5,1630.4,4.43446]
[1745237371899,12.25098,1630.5,1630.4,5.30516]
[1745237372096,11.02439,1630.5,1630.4,5.30516]
[1745237372296,6.146,1630.5,1630.4,5.30516]
[1745237373090,11.02439,1630.5,1630.4,5.30516]
[1745237373392,6.146,1630.5,1630.4,5.30516]
[1745237374188,12.25098,1630.5,1630.4,3.2078]
[1745237374801,12.25098,1630.5,1630.4,4.43446]
[1745237374989,12.25098,1630.5,1630.3,3.00968]
[1745237375496,11.02439,1630.5,1630.4,1.22666]
[1745237375699,12.25098,1630.5,1630.4,4.43446]
[1745237375994,12.25098,1630.5,1630.4,3.2078]
[1745237381896,1.22674,1630.3,1630.2,4.0588]
[1745237382195,1.22674,1630.3,1630.1,40.8]
[1745237382196,1.22681,1630.2,1630.1,40.8]
[1745237382390,6.9236,1630.2,1630.1,42.5564]
[1745237382597,6.9236,1630.2,1630.1,40.8]
[1745237382993,1.22696,1630.0,1629.9,0.00922026]
[1745237383195,7.37296,1630.0,1629.9,0.00922026]
[1745237383395,12.25135,1630.0,1629.9,40.80922026]
[1745237383899,17.25135,1630.0,1629.9,40.80922026]
[1745237384095,12.25135,1630.0,1629.9,40.80922026]
[1745237385299,13.96705,1630.0,1629.9,40.80922026]
[1745237386294,1.22719,1629.7,1629.6,3.2078]
[1745237386793,6.10558,1629.7,1629.6,3.2078]
[1745237387098,12.25158,1629.7,1629.6,3.2078]
[1745237387398,12.25158,1629.7,1629.6,45.7399]
[1745237387798,13.96268,1629.7,1629.6,45.7399]
[1745237388195,13.96268,1629.7,1629.6,44.0078]
[1745237388397,13.96268,1629.7,1629.6,40.8]
[1745237389203,1.22727,1629.6,1629.5,0.00922026]
[1745237389405,12.10046,1629.6,1629.5,0.00922026]
[1745237389602,12.10046,1629.6,1629.5,40.80922026]
[1745237389905,1.22749,1629.3,1629.2,4.0612]
[1745237390201,1.22757,1629.2,1629.1,1.6197]
[1745237390403,3.73307,1629.2,1629.1,1.6197]
[1745237390605,8.61146,1629.2,1629.1,1.6197]
[1745237391100,8.61146,1629.2,1629.1,42.4197]
[1745237391303,6.92466,1629.2,1629.1,42.4197]
[1745237394907,6.92466,1629.2,1629.1,43.64734]
[1745237395103,6.92466,1629.2,1629.1,42.4197]
[1745237398006,6.92466,1629.2,1629.1,45.6275]
[1745237399307,1.22754,1629.3,1629.1,50.6275]
[1745237399512,1.22754,1629.3,1629.2,2.84257]
[1745237399812,1.22748,1629.4,1629.3,1.22748]
[1745237400108,6.10587,1629.4,1629.3,6.09618]
[1745237401811,6.10587,1629.4,1629.3,7.79638]
[1745237402507,6.10587,1629.4,1629.3,5.7189]
[1745237402703,6.10587,1629.4,1629.3,6.94639]
[1745237403409,6.10587,1629.4,1629.3,5.7189]
[1745237406312,14.01327,1629.4,1629.3,2.5111]
[1745237406512,14.90527,1629.4,1629.3,2.5111]
[1745237408615,1.22757,1629.2,1629.1,40.8]
[1745237409113,12.25196,1629.2,1629.1,40.8]
[1745237409315,12.25196,1629.2,1629.1,45.7471]
[1745237410213,6.10596,1629.2,1629.1,45.7471]
[1745237410915,6.10596,1629.2,1629.1,40.8]
[1745237411117,13.05786,1629.2,1629.1,40.8]
[1745237411316,14.70736,1629.2,1629.1,40.8]
[1745237411513,19.70736,1629.2,1629.1,40.8]
[1745237412019,14.70736,1629.2,1629.1,40.8]
[1745237414819,23.94736,1629.2,1629.1,40.8]
[1745237415019,1.22764,1629.1,1629.0,0.00922026]
[1745237415218,11.89853,1629.1,1629.0,0.00922026]
[1745237415719,7.02014,1629.1,1629.0,0.00922026]
[1745237415923,11.89853,1629.1,1629.0,40.80922026]
[1745237416222,18.04453,1629.1,1629.0,40.80922026]
[1745237417213,11.89853,1629.1,1629.0,40.80922026]
[1745237417412,11.89853,1629.1,1629.0,42.03694026]
[1745237417413,8.69073,1629.1,1629.0,42.03694026]
[1745237417709,0.8759,1629.1,1629.0,42.03694026]
[1745237417911,2.10354,1629.1,1629.0,41.68352026]
[1745237418112,2.10354,1629.1,1629.0,44.58484026]
[1745237418313,6.98193,1629.1,1629.0,43.35712026]
[1745237418711,7.79393,1629.1,1629.0,43.35712026]
[1745237418921,7.79393,1629.1,1629.0,41.68352026]
[1745237419223,13.12793,1629.1,1629.0,42.91124026]
[1745237419425,13.12793,1629.1,1629.0,44.53554026]
[1745237420328,13.12793,1629.1,1629.0,43.30782026]
[1745237420713,13.12793,1629.1,1629.0,41.68352026]
[1745237421024,13.12793,1629.1,1629.0,40.80922026]
[1745237421625,17.36793,1629.1,1629.0,40.80922026]
[1745237422126,11.22193,1629.1,1629.0,40.80922026]
[1745237422519,14.42973,1629.1,1629.0,40.80922026]
[1745237427333,18.54596,1629.1,1629.0,40.80922026]
[1745237427523,18.54596,1629.1,1629.0,0.00922026]
[1745237427929,18.54596,1629.1,1629.0,40.80922026]
[1745237431737,18.54596,1629.1,1629.0,0.00922026]
[1745237433538,20.17056,1629.1,1629.0,0.00922026]
[1745237439548,1.22772,1629.0,1628.9,2.6e-07]
[1745237439749,12.89459759,1629.0,1628.9,2.6e-07]
[1745237439943,1.22794,1628.7,1628.6,41.6895]
[1745237440142,5.41294,1628.7,1628.6,41.6895]
[1745237440447,13.49913,1628.7,1628.6,41.6895]
[1745237440648,15.99583,1628.7,1628.6,41.6895]
[1745237441051,11.92383,1628.7,1628.6,41.6895]
[1745237441252,11.92383,1628.7,1628.6,43.3387]
[1745237441950,15.13163,1628.7,1628.6,43.3387]
[1745237443344,11.92383,1628.7,1628.6,43.3387]
[1745237443543,15.13163,1628.7,1628.6,43.3387]
[1745237443851,10.29133,1628.7,1628.6,43.3387]
[1745237445151,1.22794,1628.7,1628.6,49.56672]
[1745237445451,1.22794,1628.7,1628.6,50.38672]
[1745237446249,9.31413,1628.7,1628.6,43.3387]
[1745237446453,11.81053,1628.7,1628.6,43.3387]
[1745237446953,8.60273,1628.7,1628.6,43.3387]
[1745237448353,6.99543,1628.7,1628.6,44.56672]
[1745237448548,6.99543,1628.7,1628.6,43.3387]
[1745237448751,6.99543,1628.7,1628.6,44.56672]
[1745237449252,6.10633,1628.7,1628.6,44.56672]
[1745237450941,0.00922026,1628.8,1628.7,1.22794]
[1745237451146,4.88761026,1628.8,1628.7,6.86404]
[1745237451545,10.21522625,1629.1,1628.9,1.22779]
[1745237451748,15.09361625,1629.1,1629.0,2.10892]
[1745237451950,15.09361625,1629.1,1629.0,9.53722]
[1745237451951,10.21522625,1629.1,1629.0,9.53722]
[1745237452150,16.36122625,1629.1,1629.0,9.53722]
[1745237453254,1.64044651,1629.1,1629.0,9.53722]
[1745237453956,0.00922026,1629.2,1629.1,1.22764]
[1745237454259,0.00922026,1629.2,1629.1,15.39794]
[1745237454451,12.163512,1629.5,1629.4,1.22742]
[1745237454655,12.163512,1629.5,1629.4,8.62022]
[1745237454855,12.163512,1629.5,1629.4,13.62022]
[1745237455054,12.163512,1629.5,1629.4,54.42022]
[1745237455251,12.163512,1629.5,1629.4,55.25232]
[1745237455561,8.95745017,1629.5,1629.4,55.25232]
[1745237455857,7.55513017,1629.5,1629.4,55.75400515]
[1745237456160,6.23106017,1629.5,1629.4,57.41420515]
[1745237456656,5.51396017,1629.5,1629.4,57.41420515]
[1745237456858,2.44449825,1629.5,1629.4,57.41420515]
[1745237457358,2.6e-07,1629.6,1629.5,1.22734]
[1745237457560,14.1957479,1629.9,1629.8,1.22711]
[1745237458060,14.1957479,1629.9,1629.8,42.02711]
[1745237458259,14.1957479,1629.9,1629.8,44.55291]
[1745237458563,10.16742,1630.3,1630.1,1.22688]
[1745237458760,10.16742,1630.3,1630.2,1.6602]
[1745237459259,21.19181,1630.3,1630.2,1.6602]
[1745237459658,19.96502,1630.3,1630.2,1.6602]
[1745237459854,13.47003,1630.3,1630.2,1.6602]
[1745237460057,13.47003,1630.3,1630.2,2.88701]
[1745237460254,16.36736,1630.3,1630.2,2.88701]
[1745237460459,16.36736,1630.3,1630.2,43.68701]
[1745237460661,15.14062,1630.3,1630.2,43.68701]
[1745237460861,6.146,1630.3,1630.2,51.89481]
[1745237461264,21.52702084,1630.9,1630.8,1.22636]
[1745237461454,25.17910084,1630.9,1630.8,1.22636]
[1745237461654,20.30071084,1630.9,1630.8,1.22636]
[1745237461862,4.11623,1630.9,1630.8,4.43416]
[1745237462261,10.26223,1630.9,1630.8,4.43416]
[1745237462766,7.37229,1630.9,1630.8,3.2078]
[1745237463067,7.37229,1630.9,1630.8,4.43416]
[1745237463068,11.02439,1630.9,1630.8,4.43416]
[1745237463269,6.146,1630.9,1630.8,4.43416]
[1745237464068,11.02439,1630.9,1630.8,3.2078]
[1745237464366,6.146,1630.9,1630.8,4.43416]
[1745237464769,6.146,1630.9,1630.8,3.2078]
[1745237464962,6.146,1630.9,1630.8,1.22636]
[1745237465162,6.146,1630.9,1630.7,7.10170026]
[1745237465364,12.71929,1630.9,1630.7,7.10170026]
[1745237465564,12.71929,1630.9,1630.8,4.43416]
[1745237465764,11.02439,1630.9,1630.8,4.43416]
[1745237465966,12.25068,1630.9,1630.8,3.2078]
[1745237466164,11.02439,1630.9,1630.8,4.43416]
[1745237466361,6.146,1630.9,1630.8,6.04716]
[1745237467471,12.25068,1630.9,1630.8,4.8208]
[1745237467670,1.22636,1630.8,1630.7,0.00922026]
[1745237467971,1.22674,1630.3,1630.2,40.8]
[1745237468164,3.06622,1630.7,1630.2,42.02677]
[1745237468165,10.39034,1630.6,1630.2,42.02677]
[1745237468366,10.39034,1630.6,1630.2,40.8]
[1745237468367,1.654,1630.5,1630.2,40.8]
[1745237468562,1.22674,1630.3,1630.2,42.02681]
[1745237469069,17.11293,1630.3,1630.2,40.8]
[1745237469961,12.25113,1630.3,1630.2,42.02681]
[1745237470260,12.25113,1630.3,1630.2,43.63851]
[1745237470472,11.02439,1630.3,1630.2,43.63851]
[1745237470674,12.25113,1630.3,1630.2,43.63851]
[1745237470873,17.11293,1630.3,1630.2,40.8]
[1745237471168,6.146,1630.3,1630.2,45.23461]
[1745237471373,6.146,1630.3,1630.2,43.64321]
[1745237471575,6.146,1630.3,1630.2,46.85101]
[1745237472267,0.00922026,1630.4,1630.3,1.22674]
[1745237472864,9.32213026,1630.4,1630.2,43.64315]
[1745237473067,7.78303,1630.3,1630.2,43.64315]
[1745237473269,6.55629,1630.3,1630.2,43.64315]
[1745237473464,9.36302026,1630.4,1630.3,1.22674]
[1745237473669,6.15522026,1630.4,1630.3,1.22674]
[1745237476273,11.03361026,1630.4,1630.3,1.22674]
[1745237476774,12.66931026,1630.4,1630.2,42.02675]
[1745237476971,6.51409,1630.3,1630.2,42.02675]
[1745237477572,7.74083,1630.3,1630.2,40.8]
[1745237477774,12.74083,1630.3,1630.2,40.8]
[1745237477977,8.57433,1630.3,1630.2,40.8]
[1745237478279,14.72033,1630.3,1630.2,40.8]
[1745237479278,1.22681,1630.2,1630.1,0.00922026]
[1745237479479,11.9709,1630.2,1630.1,0.00922026]
[1745237480177,18.1169,1630.2,1630.1,1.23611026]
[1745237480478,14.9091,1630.2,1630.1,42.03611026]
[1745237480679,8.8039,1630.2,1630.1,42.03611026]
[1745237481178,10.03071,1630.2,1630.1,40.80922026]
[1745237481378,14.9091,1630.2,1630.1,42.03611026]
[1745237481680,14.9091,1630.2,1630.1,40.80922026]
[1745237481978,13.68229,1630.2,1630.1,42.03611026]
[1745237482381,13.68229,1630.2,1630.1,43.79631026]
[1745237482782,7.0354,1630.2,1630.1,43.79631026]
[1745237483783,0.00922026,1630.4,1630.3,1.22674]
[1745237483993,4.88761026,1630.4,1630.3,1.22674]
[1745237484284,4.88761026,1630.4,1630.3,7.01884]
[1745237485075,0.00922026,1630.4,1630.3,7.01884]
[1745237485284,0.8607,1630.7,1630.6,1.22651]
[1745237485477,2.5489,1630.7,1630.6,1.22651]
[1745237485782,7.42729,1630.7,1630.6,1.22651]
[1745237486281,6.146,1630.7,1630.6,2.86261]
[1745237486477,2.43268026,1630.7,1630.6,12.01761]
[1745237486683,8.55004,1631.3,1630.8,3.06581]
[1745237486880,8.55004,1631.3,1631.1,1.22611]
[1745237486881,6.62029,1631.2,1631.1,1.22611]
[1745237487183,8.08619,1631.3,1631.2,1.22606]
[1745237487387,4.87839,1631.2,1631.1,42.02609]
[1745237487582,8.08619,1631.3,1631.2,1.22606]
[1745237487783,4.9497,1631.3,1631.2,1.22606]
[1745237488088,9.82809,1631.3,1631.1,42.5542]
[1745237488285,4.87839,1631.2,1631.1,40.8]
[1745237488687,4.87839,1631.2,1631.1,42.02614]
[1745237488887,4.87839,1631.2,1631.1,40.8]
[1745237489189,6.146,1631.2,1631.1,45.23394]
[1745237489486,6.146,1631.2,1631.1,42.02614]
[1745237489684,6.146,1631.2,1631.1,50.23394]
[1745237489886,6.146,1631.2,1631.1,51.04404]
[1745237490189,4.8367,1631.2,1631.1,51.04404]
[1745237490388,2.47146,1631.2,1631.1,51.04404]
[1745237490585,3.2078,1631.7,1631.6,1.22576]
[1745237490886,3.2078,1631.7,1631.4,1.22589]
[1745237491087,4.87839,1631.6,1631.5,1.22584]
[1745237492187,11.02439,1631.6,1631.5,1.22584]
[1745237493291,6.146,1631.6,1631.5,8.64564]
[1745237493482,6.146,1631.6,1631.5,4.43364]
[1745237493684,9.47701,1631.6,1631.5,4.211]
[1745237494184,9.47701,1631.6,1631.3,5.8275]
[1745237494185,9.47701,1631.6,1631.3,1.7678]
[1745237494393,3.33101,1631.5,1631.3,4.43375]
[1745237494585,3.33101,1631.5,1631.4,1.22591]
[1745237494987,3.33101,1631.5,1631.4,2.90571]
[1745237495181,4.11623,1631.7,1631.4,1.6798]
[1745237495390,3.33101,1631.6,1631.5,1.22579]
[1745237495593,4.55677,1631.6,1631.3,8.64474]
[1745237495787,3.33101,1631.5,1631.4,1.22591]
[1745237495987,3.33101,1631.5,1631.3,7.4188]
[1745237495988,3.33101,1631.6,1631.3,7.4188]
[1745237496187,3.33101,1631.6,1631.5,1.22584]
[1745237497088,4.11623,1631.7,1631.6,1.22576]
[1745237497294,7.44724,1631.7,1631.6,1.22576]
[1745237497488,4.11623,1631.7,1631.6,8.64456]
[1745237497694,0.8411,1631.9,1631.8,1.22561]
[1745237497895,4.16514485,1631.9,1631.8,1.22561]
[1745237498195,10.31114485,1631.9,1631.8,1.22561]
[1745237498795,11.53671485,1631.9,1631.7,1.22562]
[1745237499091,6.146,1631.9,1631.8,4.211]
[1745237499292,4.41563485,1631.9,1631.8,7.96821]
[1745237499492,4.11623,1632.5,1632.4,1.22516]
[1745237499689,4.55623,1632.4,1632.1,1.22536]
[1745237499893,4.43305,1632.3,1632.0,4.43322]
[1745237500093,7.76406,1632.3,1632.1,40.80919033]
[1745237500298,3.33101,1632.2,1632.1,42.03452033]
[1745237500491,1.22524,1632.3,1632.1,42.03452033]
[1745237500698,1.22531,1632.2,1632.1,40.80919033]
[1745237500991,7.76412,1632.2,1632.1,40.80919033]
[1745237501292,1.22554,1631.9,1631.7,1.22566]
[1745237501496,1.22554,1631.9,1631.7,1.21869485]
[1745237501793,3.2078,1632.0,1631.7,1.21869485]
[1745237501794,3.2078,1632.0,1631.8,40.8]
[1745237501990,4.54958485,1631.9,1631.8,40.8]
[1745237502397,1.22561,1631.8,1631.7,0.00919033]
[1745237502596,6.53881,1631.8,1631.7,0.00222518]
[1745237502800,7.76442,1631.8,1631.7,40.80222518]
[1745237503097,13.91042,1631.8,1631.7,40.80222518]
[1745237505301,10.70262,1631.8,1631.7,40.80222518]
[1745237505500,13.91042,1631.8,1631.7,40.80222518]
[1745237505902,9.47701,1631.8,1631.7,42.02791518]
[1745237506504,9.47701,1631.8,1631.7,45.23571518]
[1745237506797,6.13680967,1631.8,1631.7,52.01501518]
[1745237507094,0.00909079,1632.0,1631.9,1.22554]
[1745237507294,3.33313564,1632.0,1631.9,1.22554]
[1745237508089,6.14812564,1632.0,1631.9,1.22554]
[1745237508500,6.14812564,1632.0,1631.9,4.43334]
[1745237508999,6.14812564,1632.0,1631.9,6.06844]
[1745237510097,6.14812564,1632.0,1631.9,11.06844]
[1745237510292,0.00212564,1632.0,1631.9,11.89534]
[1745237510503,0.00212564,1632.0,1631.9,6.89534]
[1745237510799,0.00212564,1632.0,1631.9,6.06844]
[1745237511099,6.14812564,1632.0,1631.9,6.06844]
[1745237512104,9.47913564,1632.0,1631.8,1.22558]
[1745237512401,3.33101,1631.9,1631.8,1.22558]
[1745237512602,4.98321,1631.9,1631.8,1.22558]
[1745237512794,4.98321,1631.9,1631.8,3.00558]
[1745237513098,11.12921,1631.9,1631.8,3.00558]
[1745237513603,1.22561,1631.8,1631.7,40.80222518]
[1745237513905,4.97881,1631.8,1631.7,1.22569]
[1745237514200,9.47701,1631.8,1631.7,1.22569]
[1745237514499,9.47701,1631.8,1631.6,1.22571]
[1745237514698,4.97881,1631.7,1631.6,1.22571]
[1745237514898,4.97881,1631.7,1631.6,42.02571]
[1745237515103,11.12481,1631.7,1631.6,42.02571]
[1745237515902,11.12481,1631.7,1631.6,45.23351]
[1745237517403,11.12481,1631.7,1631.6,42.02576]
[1745237519507,12.3505,1631.7,1631.6,40.8]
[1745237519701,9.47701,1631.7,1631.6,42.02576]
[1745237520205,6.146,1631.7,1631.6,46.88146]
[1745237520407,6.146,1631.7,1631.6,48.62096]
[1745237521705,9.47701,1631.7,1631.6,47.73606]
[1745237524507,9.47701,1631.7,1631.6,44.52826]
[1745237524913,11.11971,1631.7,1631.6,44.52826]
[1745237525108,12.3454,1631.7,1631.6,42.4479]
[1745237525408,11.11971,1631.7,1631.6,42.02576]
[1745237525712,9.47701,1631.7,1631.6,46.88906]
[1745237526208,3.33101,1631.7,1631.6,47.77956]
[1745237526515,3.33101,1631.7,1631.6,44.57176]
[1745237528113,9.47701,1631.7,1631.6,44.57176]
[1745237530008,11.12551,1631.7,1631.6,44.57176]
[1745237530208,11.12551,1631.7,1631.6,42.02576]
[1745237531013,10.7027,1631.7,1631.6,40.8]
[1745237531414,12.3512,1631.7,1631.6,40.8]
[1745237531712,1.22576,1631.6,1631.5,0.00919033]
[1745237531907,10.29427,1631.6,1631.5,0.00919033]
[1745237532107,21.44027,1631.6,1631.5,0.00919033]
[1745237532511,21.44027,1631.6,1631.5,40.80919033]
[1745237533814,25.5565,1631.6,1631.5,40.80919033]
[1745237534109,25.5565,1631.6,1631.5,3.3e-07]
[1745237534315,25.65939008,1631.6,1631.5,3.3e-07]
[1745237536017,1.22614,1631.1,1631.0,40.8]
[1745237536312,1.22621,1631.0,1630.9,4.93179]
[1745237536521,7.95272,1631.0,1630.9,4.93179]
[1745237536711,12.95272,1631.0,1630.9,4.93179]
[1745237537219,19.20164358,1631.0,1630.9,4.93179]
[1745237537924,19.20165263,1631.0,1630.9,4.93179]
[1745237538414,14.20165263,1631.0,1630.9,4.93179]
[1745237539620,14.09872,1631.0,1630.9,4.93179]
[1745237540618,14.20164415,1631.0,1630.9,4.93179]
[1745237541319,13.28112,1631.0,1630.9,4.93179]
[1745237544318,13.38404429,1631.0,1630.9,4.93179]
[1745237544526,18.38404429,1631.0,1630.9,1.81335]
[1745237544928,18.38405218,1631.0,1630.9,1.81335]
[1745237545423,18.28112,1631.0,1630.9,1.81335]
[1745237545625,18.38405245,1631.0,1630.9,1.81335]
[1745237545926,13.38405245,1631.0,1630.9,1.81335]
[1745237546522,13.38405386,1631.0,1630.9,0.22838]
[1745237547024,1.22629,1630.9,1630.8,0.00919033]
[1745237547322,10.34953386,1630.9,1630.8,0.00919033]
[1745237547928,13.7292,1630.9,1630.8,0.00919033]
[1745237548128,19.8752,1630.9,1630.8,1.69689033]
[1745237548320,19.8752,1630.9,1630.8,0.00919033]
[1745237548717,18.2531,1630.9,1630.8,0.00919033]
[1745237548928,12.68481,1630.9,1630.8,1.23555033]
[1745237549719,12.68481,1630.9,1630.8,3.00555033]
[1745237551122,13.9111,1630.9,1630.8,1.77919033]
[1745237551328,13.9111,1630.9,1630.8,0.89319033]
[1745237551832,18.2211,1630.9,1630.8,0.00919033]
[1745237553024,18.2211,1630.9,1630.8,1.62999033]
[1745237553928,20.643,1630.9,1630.8,0.00919033]
[1745237554926,24.75923,1630.9,1630.8,0.00919033]
[1745237557834,24.75923,1630.9,1630.8,0.00919033]
[1745237560029,24.75923,1630.9,1630.8,3.3e-07]
[1745237560030,29.86216534,1630.9,1630.8,3.3e-07]
[1745237561028,29.86217503,1630.9,1630.8,3.3e-07]
[1745237561222,1.22666,1630.4,1630.3,1.7384]
[1745237561529,4.43446,1630.4,1630.3,1.7384]
[1745237561733,7.76547,1630.4,1630.3,42.5384]
[1745237562327,13.91147,1630.4,1630.3,42.5384]
[1745237563129,15.65817,1630.4,1630.3,42.5384]
[1745237565127,13.91147,1630.4,1630.3,42.5384]
[1745237565732,10.58046,1630.4,1630.3,42.5384]
[1745237566034,13.91147,1630.4,1630.3,42.5384]
[1745237567736,15.63367,1630.4,1630.3,42.5384]
[1745237569233,13.91147,1630.4,1630.3,43.76514]
[1745237569539,13.91147,1630.4,1630.3,45.44664]
[1745237569837,13.91147,1630.4,1630.3,44.2199]
[1745237570636,13.91147,1630.4,1630.3,45.44664]
[1745237571034,13.91147,1630.4,1630.3,44.2199]
[1745237571537,6.146,1630.4,1630.3,50.44664]
[1745237572132,1.22663,1630.5,1630.4,1.22666]
[1745237572334,3.33101,1630.5,1630.4,7.99796]
[1745237572627,4.43437,1630.6,1630.4,6.7713]
[1745237572834,7.76532,1630.6,1630.5,1.7713]
[1745237573135,13.91132,1630.6,1630.5,1.7713]
[1745237575531,13.91132,1630.6,1630.5,2.99789]
[1745237575733,13.91132,1630.6,1630.5,1.7713]
[1745237575935,13.91132,1630.6,1630.5,2.99789]
[1745237576141,13.91132,1630.6,1630.5,1.7713]
[1745237576634,13.91132,1630.6,1630.5,2.99789]
[1745237576838,13.91132,1630.6,1630.5,1.7713]
[1745237577637,13.91132,1630.6,1630.5,2.99789]
[1745237578638,13.91132,1630.6,1630.5,1.7713]
[1745237578944,12.68481,1630.6,1630.5,2.99789]
[1745237579245,13.91132,1630.6,1630.5,2.99789]
[1745237579943,13.91132,1630.6,1630.5,1.7713]
[1745237580336,13.91132,1630.6,1630.5,3.7713]
[1745237580746,13.91132,1630.6,1630.5,2.0]
[1745237580943,13.91132,1630.6,1630.5,3.6302]
[1745237581548,13.91132,1630.6,1630.5,4.85679]
[1745237582245,13.91132,1630.6,1630.5,2.0]
[1745237582743,15.91132,1630.6,1630.5,2.0]
[1745237583242,17.60702,1630.6,1630.5,2.0]
[1745237583442,17.60702,1630.6,1630.5,3.6302]
[1745237584148,14.68481,1630.6,1630.5,4.85679]
[1745237584444,15.91132,1630.6,1630.5,4.85679]
[1745237584649,14.68481,1630.6,1630.5,4.85679]
[1745237584940,15.91132,1630.6,1630.5,4.85679]
[1745237585439,15.91132,1630.6,1630.5,3.6302]
[1745237586952,15.91132,1630.6,1630.5,4.85679]
[1745237587244,15.91132,1630.6,1630.5,3.6302]
[1745237587750,15.91132,1630.6,1630.5,4.85679]
[1745237588050,15.91132,1630.6,1630.5,3.6302]
[1745237588549,15.91132,1630.6,1630.5,4.85679]
[1745237589057,15.91132,1630.6,1630.5,3.6302]
[1745237590049,15.91132,1630.6,1630.5,2.0]
[1745237590444,17.56132,1630.6,1630.5,2.0]
[1745237591049,14.68481,1630.6,1630.5,4.88649]
[1745237591647,17.56132,1630.6,1630.5,4.88649]
[1745237593354,14.68481,1630.6,1630.5,4.88649]
[1745237593654,8.146,1630.6,1630.5,4.88649]
[1745237593846,11.47701,1630.6,1630.5,4.88649]
[1745237594250,5.33101,1630.6,1630.5,4.88649]
[1745237594956,6.55752,1630.6,1630.5,4.88649]
[1745237595256,14.43852,1630.6,1630.5,4.88649]
[1745237595653,11.47701,1630.6,1630.5,4.88649]
[1745237596449,6.55752,1630.6,1630.5,2.0]
[1745237596756,8.22942,1630.6,1630.5,2.0]
[1745237596956,8.22942,1630.6,1630.5,3.22659]
[1745237597153,14.37542,1630.6,1630.5,3.22659]
[1745237597547,14.37542,1630.6,1630.5,2.0]
[1745237597755,14.37542,1630.6,1630.5,3.22659]
[1745237602848,14.37542,1630.6,1630.5,2.0]
[1745237603057,14.37542,1630.6,1630.5,3.22659]
[1745237604461,11.47701,1630.6,1630.5,3.22659]
[1745237604661,11.47701,1630.6,1630.5,4.95939]
[1745237605166,5.33101,1630.6,1630.5,4.95939]
[1745237609059,2.0,1630.6,1630.5,9.18639]
[1745237609260,2.0,1630.6,1630.5,14.18639]
[1745237609572,0.00919033,1631.1,1630.8,3.06588]
[1745237609753,0.00919033,1631.1,1631.0,1.22621]
[1745237610066,3.34020033,1631.1,1631.0,1.22621]
[1745237610363,2.5031,1631.4,1631.3,1.22599]
[1745237610555,5.83411,1631.4,1631.3,1.22599]
[1745237610860,5.83411,1631.4,1631.3,42.02599]
[1745237611060,5.83411,1631.4,1631.3,43.65209]
[1745237611261,9.47701,1631.4,1631.3,43.65209]
[1745237611458,9.47701,1631.4,1631.3,44.50249]
[1745237611650,14.15800002,1631.5,1631.4,1.22591]
[1745237611856,14.15800002,1631.5,1631.4,6.05981]
[1745237612160,3.74703,1631.8,1631.7,1.22569]
[1745237612360,2.5214,1631.8,1631.7,1.22569]
[1745237612558,5.85241,1631.8,1631.7,1.22569]
[1745237613268,11.99841,1631.8,1631.7,2.08369]
[1745237613464,9.47701,1631.8,1631.7,42.88369]
[1745237614360,10.70262,1631.8,1631.7,40.8]
[1745237614557,12.42262,1631.8,1631.7,40.8]
[1745237614964,13.28422,1631.8,1631.7,40.8]
[1745237615263,1.22576,1631.6,1631.5,1.22582]
[1745237615464,6.27677,1631.7,1631.5,1.22582]
[1745237615665,2.5334,1631.6,1631.5,1.22582]
[1745237615862,5.86441,1631.6,1631.5,1.22582]
[1745237616057,3.33101,1631.6,1631.5,42.02582]
[1745237616267,9.47701,1631.6,1631.5,45.45632]
[1745237616464,11.19701,1631.6,1631.5,42.02582]
[1745237617164,7.866,1631.6,1631.5,43.75932]
[1745237617670,6.146,1631.6,1631.5,43.75932]
[1745237619365,9.47701,1631.6,1631.5,42.02582]
[1745237619559,11.23241,1631.6,1631.5,42.02582]
[1745237620673,11.23241,1631.6,1631.5,43.72172]
[1745237620866,6.146,1631.6,1631.5,43.72172]
[1745237624175,7.7688,1631.7,1631.6,1.22576]
[1745237624368,11.09981,1631.7,1631.6,2.91946]
[1745237624873,11.09981,1631.7,1631.6,43.71946]
[1745237625467,11.09981,1631.7,1631.6,46.92726]
[1745237626074,11.09981,1631.7,1631.6,45.23356]
[1745237626264,12.3255,1631.7,1631.6,40.8]
[1745237626468,12.3255,1631.7,1631.6,42.02576]
[1745237626767,11.09981,1631.7,1631.6,42.02576]
[1745237629075,12.3255,1631.7,1631.6,42.02576]